Cogmind - Beta 9.5 @@@ ROGUE MODE // 2020.04.09 @ 01:51:58 // AFD2020/Player2 Player: Nalzok Result: Core destroyed Performance ------------- Evolutions (0) 0 Regions Visited (2) 400 Robots Destroyed (16) 80 Value Destroyed (210) 210 Prototype IDs (0) 0 Alien Tech Used (0) 0 Bonus (-39) -39 TOTAL SCORE: 651 Bonus ------- Friendly Fire -39 Cogmind --------- Core Integrity 0/250 Matter 115/300 Energy 96/100 System Corruption 3% Temperature Cool (2) Movement Walking (120) Location -10/Mines Parts ------- > --- POWER (1) -------- (None) > --- PROPULSION (2) --- Aluminum Leg Aluminum Leg > --- UTILITY (2) ------ Small Storage Unit Terrain Scanner > --- WEAPON (2) ------- Light Assault Rifle Grenade Launcher > --- INVENTORY (6) ---- Light Ion Engine Aluminum Leg Medium Laser Small Laser Light Assault Rifle Light Assault Rifle Peak State ------------ > --- POWER ------------ Light Ion Engine > --- PROPULSION ------- Aluminum Leg Aluminum Leg > --- UTILITY ---------- Small Storage Unit Terrain Scanner > --- WEAPON ----------- Medium Laser Assault Rifle > --- INVENTORY -------- Light Ion Engine Wheel Compact Wheel Small Laser Grenade Launcher [Rating: 7] Favorites ----------- Power Light Ion Engine Engine Light Ion Engine Propulsion Aluminum Leg Leg Aluminum Leg Utility Small Storage Unit Device Terrain Scanner Storage Small Storage Unit Weapon Light Assault Rifle Energy Gun Medium Laser Ballistic Gun Light Assault Rifle Launcher Grenade Launcher Build | -11 -10 -10 ------- Run | Scr Mat Min Slots Evolved . | . . . Power . | . . . Propulsion . | . . . Utility . | . . . Weapon . | . . . Parts Attached 8 | . 3 5 Power 1 | . . 1 Engine 1 | . . 1 Core . | . . . Reactor . | . . . Propulsion 1 | . 1 . Treads . | . . . Leg 1 | . 1 . Wheel . | . . . Hover . | . . . Flight . | . . . Utility 1 | . 1 . Device 1 | . 1 . Storage . | . . . Processor . | . . . Hackware . | . . . Protection . | . . . Artifact . | . . . Weapon 5 | . 1 4 Energy Gun . | . . . Energy Cannon . | . . . Ballistic Gun 3 | . . 3 Ballistic Cannon . | . . . Launcher 2 | . 1 1 Special Weapon . | . . . Impact Weapon . | . . . Slashing Weapon . | . . . Piercing Weapon . | . . . Special Melee Weapon . | . . . Unidentified Prototypes . | . . . Parts Lost 2 | . . 2 Power 1 | . . 1 Propulsion . | . . . Utility . | . . . Weapon 1 | . . 1 Highest Loss Streak 1 | . . 1 Average Slot Usage (%) 96 | . 96 96 Engine 12 | . 14 11 Leg 28 | . 28 28 Device 12 | . 10 14 Storage 14 | . 14 14 Energy Gun 1 | . 4 . Ballistic Gun 18 | . 14 21 Launcher 7 | . 9 5 Naked Turns . | . . . Heaviest Build 13 | 11 13 13 Greatest Support 20 | 20 20 20 Greatest Overweight (x) . | . . . Average Overweight (x) . | . . . Largest Inventory Capacity 6 | . 6 6 Average Capacity 6 | . 6 6 Most Carried 6 | . 6 6 Average Carried 5 | . 5 6 Final Capacity 6 | 6 6 6 Final Carried 6 | 6 6 6 Class Distribution -------------------- 66% | Mutant 33% | Scavenger-Mutant Dominant Class ---------------- Mutant | -10/Materials Scavenger-Mutant | -10/Mines Resources | -11 -10 -10 ----------- Run | Scr Mat Min Matter Collected 344 | 200 41 103 Remotely . | . . . Salvage Created 215 | . 65 150 Parts 22 | . 6 16 Haulers Intercepted . | . . . Recyclers Shooed . | . . . Parts Field Recycled . | . . . Retrieved Matter . | . . . Parts Self-Destructed . | . . . Prevented . | . . . Kills | -11 -10 -10 ------- Run | Scr Mat Min Combat Hostiles Destroyed 15 | . 4 11 Guns 6 | . 2 4 AOE 9 | . 2 7 Classes Destroyed 4 | . 2 2 Builder 1 | . . 1 Swarmer 9 | . 3 6 Grunt 3 | . 1 2 Assembled 3 | . . 3 Best Kill Streak 6 | . 3 6 Combat Bots Only 5 | . 3 5 Max Kills in Single Turn 3 | . 2 3 Gunslinging . | . . . Exploded 3 | . 2 3 Melee . | . . . Uniques/NPCs Destroyed . | . . . Combat | -11 -10 -10 -------- Run | Scr Mat Min Damage Taken 721 | . 120 601 Core 245 | . 22 223 Absorbed by Shields . | . . . Core Remaining (%) 100 | 100 . . Volleys Fired 38 | . 8 30 Largest 2 | . 2 2 Hottest 70 | . 70 50 Shots Fired 53 | . 13 40 Gun 35 | . 12 23 Cannon . | . . . Launcher 18 | . 1 17 Special . | . . . Kinetic 31 | . 8 23 Thermal 4 | . 4 . Explosive 18 | . 1 17 Electromagnetic . | . . . Robot Hit Streak 13 | . 2 13 Robot Miss Streak 2 | . 2 1 Penetration Max . | . . . Secondary Targets . | . . . Shots Hit Robots 23 | . 6 17 Core Hits 25 | . 5 20 Critical Hits . | . . . Critical Kills . | . . . Critical Parts Destroyed . | . . . Melee Attacks . | . . . Impact . | . . . Slashing . | . . . Piercing . | . . . Sneak Attacks . | . . . Combat Hostiles . | . . . Follow-up Attacks . | . . . Damage Inflicted 705 | . 141 564 Guns 215 | . 71 144 Cannons . | . . . Explosions 490 | . 70 420 Melee . | . . . Ramming . | . . . Kinetic 202 | . 58 144 Thermal 13 | . 13 . Explosive 490 | . 70 420 Electromagnetic . | . . . Impact . | . . . Slashing . | . . . Piercing . | . . . Highest Corruption 3 | . 3 3 Average Corruption 2 | . 1 3 Corruption Purged . | . . . Effects 8 | . . 8 Message Errors 3 | . . 3 Matter Fused 3 | . . 3 Targeting Errors 1 | . . 1 Weapon Failures 1 | . . 1 Overload Shots . | . . . Overflow Damage 33 | . . 33 Projectiles . | . . . Explosions 33 | . . 33 Melee . | . . . Knockbacks . | . . . Impact . | . . . Kinetic . | . . . Secondary . | . . . Self-Inflicted Damage 142 | . . 142 Shots 7 | . . 7 Rammed . | . . . Targets Rammed . | . . . Kicked . | . . . Crushed . | . . . Highest Temperature 66 | . 66 44 Average Temperature 27 | . 35 17 Received Heat Transfer 159 | . 48 111 Siege Activations . | . . . Robots Corrupted . | . . . Combat Hostiles . | . . . Parts Fried . | . . . Impact Corruptions . | . . . Robots Melted . | . . . Combat Hostiles . | . . . Parts Melted . | . . . Heat Transferred 37 | . 37 . Parts Sabotaged . | . . . Parts Stolen . | . . . Parts Stripped . | . . . Power Chain Reactions . | . . . Missiles Intercepted . | . . . Alert | -11 -10 -10 ------- Run | Scr Mat Min Peak Influence 237 | . 139 237 Average Influence 143 | . 58 201 Maximum Alert Level 1 | . . 1 Low Security (%) 53 | . 100 21 Level 1 46 | . . 78 Level 2 . | . . . Level 3 . | . . . Level 4 . | . . . Level 5 . | . . . High Security . | . . . Max Security . | . . . Squads Dispatched 1 | . 1 . Investigation . | . . . Extermination . | . . . Reinforcement 1 | . 1 . Assault . | . . . Garrison . | . . . Intercept . | . . . Construction Impeded . | . . . Haulers Reinforced . | . . . Stealth | -11 -10 -10 --------- Run | Scr Mat Min Distress Signals 2 | . 1 1 Communications Jammed . | . . . Distress Signals . | . . . Times Spotted 17 | . 6 11 Peak Tracking Total 4 | . 4 3 Tactical Retreats . | . . . Traps | -11 -10 -10 ------- Run | Scr Mat Min Traps Triggered 2 | . 2 . Indirectly . | . . . Trap Hack Attempts . | . . . Triggered . | . . . Disarmed . | . . . Reprogrammed . | . . . Reused . | . . . Traps Extracted . | . . . Installed . | . . . Triggered . | . . . Machines | -11 -10 -10 ---------- Run | Scr Mat Min Machines Disabled . | . . . Max in Single Turn . | . . . Machines Sabotaged . | . . . Garrisons Compromised . | . . . Overloaded Fab Kills . | . . . Fab Network Shutdowns . | . . . Hacking | -11 -10 -10 --------- Run | Scr Mat Min Machines Accessed 2 | . 2 . Terminals 2 | . 2 . Fabricators . | . . . Repair Stations . | . . . Recycling Units . | . . . Scanalyzers . | . . . Garrison Access . | . . . Total Hacks 3 | . 3 . Successful 1 | . 1 . Failed 2 | . 2 . Catastrophic 2 | . 2 . Database Lockouts . | . . . Manual 3 | . 3 . Terminals 3 | . 3 . Fabricators . | . . . Repair Stations . | . . . Recycling Units . | . . . Scanalyzers . | . . . Garrison Access . | . . . Terminal Hacks 1 | . 1 . Unreport Threat 1 | . 1 . Fabricator Hacks . | . . . Repair Station Hacks . | . . . Recycling Unit Hacks . | . . . Scanalyzer . | . . . Garrison Access Hacks . | . . . Unauthorized Hacks . | . . . Terminals . | . . . Fabricators . | . . . Repair Stations . | . . . Recycling Units . | . . . Scanalyzers . | . . . Garrison Access . | . . . Data Cores Recovered . | . . . Used . | . . . Hacking Detections 2 | . 2 . Full Trace Events . | . . . Feedback Events . | . . . Feedback Blocked . | . . . Robot Schematics Acquired . | . . . Robots Built . | . . . Matter . | . . . Time . | . . . Total Robot Build Rating . | . . . Part Schematics Acquired . | . . . Parts Built . | . . . Matter . | . . . Time . | . . . Total Part Build Rating . | . . . Parts Repaired . | . . . Time . | . . . Parts Recycled . | . . . Recycled Matter . | . . . Retrieved Matter . | . . . Retrieved Components . | . . . Parts Scanalyzed . | . . . Part Schematics Acquired . | . . . Parts Damaged . | . . . Bothacking | -11 -10 -10 ------------ Run | Scr Mat Min Used RIF Installer . | . . . Robots Hacked . | . . . Non-combat . | . . . Combat . | . . . Robot Hacks Applied . | . . . Relay Couplers Released . | . . . Robots Rewired . | . . . Allies Hacked . | . . . Hacks Repelled . | . . . Allies | -11 -10 -10 -------- Run | Scr Mat Min Total Allies 1 | . 1 . Largest Group 1 | . 1 1 Highest-Rated Group 56 | . 56 56 Highest-Rated Ally 56 | . 56 56 Total Orders . | . . . Ally Attacks 2 | . . 2 Total Damage 22 | . . 22 Kills . | . . . Allies Corrupted . | . . . Allies Melted . | . . . Intel | -11 -10 -10 ------- Run | Scr Mat Min Robot Analysis Total . | . . . Derelict Logs Recovered 1 | . . 1 Drone Launches . | . . . Drone Recoveries . | . . . Exploration | -11 -10 -10 ------------- Run | Scr Mat Min Turns Passed 604 | . 244 360 Spaces Moved 417 | 1 178 238 Core . | . . . Treads . | . . . Legs 417 | 1 178 238 Wheels . | . . . Hover . | . . . Flight . | . . . Fastest Speed 120 | 120 120 120 Average Speed 120 | 120 120 120 Slowest Speed 120 | 120 120 120 Overloaded Moves . | . . . Propulsion Burnouts . | . . . Robots Hopped . | . . . Cave-ins Triggered 1 | . . 1 Exploration Rate (%) 33 | 1 41 58 Regions Visited 2 Branch Regions 1 Pre-discovered Areas . | . . . Known Exits Taken . | . . . Unknown Exits Taken 2 | 1 1 . Scrap Searched . | . . . Spaces Dug 5 | . . 5 Terrain Destroyed 62 | . 4 58 Melee . | . . . Projectile . | . . . AOE 62 | . 4 58 Actions | -11 -10 -10 --------- Run | Scr Mat Min Total 473 | . 197 276 Wait . | . . . Move 415 | . 177 238 Hop . | . . . Pick Up 4 | . 4 . Fast Attach 2 | . 1 1 Attach . | . . . Detach . | . . . Swap 6 | . 2 4 Drop 8 | . 5 3 Fire 38 | . 8 30 Melee . | . . . Ram . | . . . Kick . | . . . Crush . | . . . Escape Stasis . | . . . Rewire . | . . . Trap . | . . . Miscellaneous . | . . . Route ------- -11/Scrapyard -10/Materials (discovered 2 exits: [*Mat] / [*Min]) -10/Mines History --------- Turn | Location | Event 1 | -11/Scrapyard | Discovered new exit (range 0) 1 | -11/Scrapyard | Entered Materials 148 | -10/Materials | Discovered new exit (range 8) 196 | -10/Materials | Discovered new exit (range 7) 245 | -10/Materials | Entered Mines 245 | -10/Mines | Accompanied by 1 ally 257 | -10/Mines | Met a Derelict bent on vengeance 300 | -10/Mines | Build established: Mutant 303 | -10/Mines | Learned Materials terminal intel 539 | -10/Mines | Excavation squad dispatched 539 | -10/Mines | A large section of the Mines collapsed 551 | -10/Mines | Crushed by falling debris 551 | -10/Mines | Core integrity fell below 50% 551 | -10/Mines | Core integrity fell below 20% 605 | -10/Mines | Core destroyed Last Messages --------------- 00539_ K-01 Serf system corrupted by crushing effect. 00539_ K-01 Serf destroyed. 00539_ ALERT: Suspicious cave-in, suspected derelict activity in mines. Dispatching escorted excavation squad. 00540_ Lgt. Ion Engine destroyed. 00540_ Destroyed Lgt. Ion Engine. 00548_ Knocked back. 00549_ as-93109 destroyed. 00551_ The unstable cave ceiling collapses. 00551_ Crushed by falling debris. 00551_ System corrupted: Grenade Launcher failed to launch. 00556_ System corrupted: Matter fused (-5). 00557_ as-46097 destroyed. 00562_ Acquired 2 matter. 00567_ The unstable cave ceiling collapses. 00572_ LQ 80X9S5 INUIKQ &J# 00601_ U-05 Engineer builds a Wall. 00605_ U-05 Engineer lays Concrete. Map ----- +----------------------------------------------------+ | ??????????## ####??????# #??#???## | | ??????????# ##????? #????### | | ?????????## ##????# #?#?## ### | | ????????## ###??# ##### ##?## | | ???????## #### # ##???# | | ????#??# ###????# | | ???????## ## ##??????## | | ????????###?## #### ##????????# | | ?????????????## ##??## #?????????+ | | ????#?????????# #####???# #?????????+ | | ???????????#?## ##?????#? #????????# | | ????????????#?# #?????#? #????????# | | ??????????????# #?????# #????????# | | ?????????####?# #????? #???????? | | ???#?????# # #????##### ??????? | | ???#?????# ## ###???????## ???#?? | | ?????#??## u#####???????# #????? | | ????????# ########## #????? | | ????????# ##; ????? | | ????????### # ?????? | | ??????#??### @ ### ????????? | | ?????#????## ##?? ??????????? | | ???????????## #?????????????????? | | ???????????### #??? ?????????????? | | ?????????????# # #???? ????????????? | | ???????#????# ## @ ##?????????????????? | | ????????????##?# #??? ??????????????? | | ???????#???????# ##??????????????????? | | ???????????##??## #???????????????????? | | ????#???????????#######???????????????????? | | ??????????????#???? #?????????????????????? | | ??????????????????? #?##??????????????????? | | ???????????#???????##????#????????????????? | | ??????????????????????????????????????????? | | ??????????????????#???????????????????????? | | ????????????#?????????????????????????????? | | ??????????????????????????????????????????? | | ??????????????????????????????????????????? | | ??????????????????????????????????????????? | | ??????????????????????????????????????????? | | ??????????????????????????????????????????? | | ??????????????????????????????????????????? | | ??????????????????????????????????????????? | | ??????????????????????????????????????????? | | ??????????????????????????????????????????? | | ??????????????????????????????????????????? | | ??????????????????????????????????????????? | | ??????????????????????????????????????????? | | ??????????????????????????????????????????? | | | +----------------------------------------------------+ Best States ------------- Heat Dissipation 25 Energy Generation 10 Energy Capacity 125 Matter Stores 300 Matter Capacity 300 Sight Range 16 Terrain Scan Range 14 Terrain Scan Density 10 Evasion (%) 40 Item Schematics ----------------- None Robot Schematics ------------------ None Fabricated ------------ Nothing Alien Tech Used ----------------- None Achievements -------------- None Challenges ------------ None Game ------ Seed CoreGlidesysWell Manual? 0 Play Time 00:08:30 Cumulative 244.1 hours Start 2020.04.08 @ 10:55:41 End 2020.04.09 @ 01:51:58 Sessions 2 Manual Loads 0 Difficulty Rogue Special Mode AFD2020/Player2 Game No. 379 Rogue 378 Adventurer 0 Explorer 1 Win Type - Total 1 Types 1/0/0/0/0/0/0 Lore% 65 Gallery% 78 Achievement% 54 Wizard Run 0 Options --------- ASCII 1 Keyboard 1 Movement Vi Keybinds 0 Fullscreen 2 Font 14/Cog Map View 72x52 Tactical HUD 1 Map Filters NONE Filters LOW_CONTRAST(13,24,33) Steam 0 RUN: 0d618e26-5fd1-4070-abad-cf68da1d9f13